[Event "*** Titled Tuesday Blitz"]
[Site "Chess.com"]
[Date "2019.04.02"]
[Round "7"]
[White "AttilaTurzo"]
[Black "Taron_Shagbazyan"]
[Result "1-0"]
[WhiteElo "2582"]
[BlackElo "2706"]
[TimeControl "180+2"]
[EndTime "15:37:28 PDT"]
[Termination "AttilaTurzo won by resignation"]

1. d4 {[%clk 0:03:01.9]} 1... Nf6 {[%clk 0:03:00.4]} 2. c4 {[%clk 0:03:02.8]}
2... e6 {[%clk 0:03:01.5]} 3. g3 {[%clk 0:03:03.6]} 3... d5 {[%clk 0:03:01.1]}
4. Bg2 {[%clk 0:03:04.9]} 4... Be7 {[%clk 0:02:56.1]} 5. Nf3 {[%clk 0:03:05.4]}
5... O-O {[%clk 0:02:56]} 6. O-O {[%clk 0:03:06.9]} 6... dxc4 {[%clk 0:02:57.4]}
7. Qc2 {[%clk 0:03:08]} 7... b5 {[%clk 0:02:58.5]} 8. a4 {[%clk 0:02:55.1]} 8...
c6 {[%clk 0:02:58.9]} 9. Ne5 {[%clk 0:02:41.9]} 9... Nd5 {[%clk 0:02:57]} 10.
Rd1 {[%clk 0:02:34.2]} 10... f6 {[%clk 0:02:53.5]} 11. Nf3 {[%clk 0:02:31.4]}
11... Na6 {[%clk 0:02:51.3]} 12. e4 {[%clk 0:02:14.5]} 12... Ndb4 {[%clk
0:02:50.2]} 13. Qe2 {[%clk 0:02:14.8]} 13... Nd3 {[%clk 0:02:51.4]} 14. Be3
{[%clk 0:02:09]} 14... Rb8 {[%clk 0:02:40.1]} 15. axb5 {[%clk 0:02:07.5]} 15...
cxb5 {[%clk 0:02:27.6]} 16. Ne1 {[%clk 0:02:03.3]} 16... Nxe1 {[%clk 0:02:15]}
17. Qxe1 {[%clk 0:02:02.2]} 17... Qc7 {[%clk 0:02:03.1]} 18. Nc3 {[%clk
0:01:35.7]} 18... Nb4 {[%clk 0:02:01.7]} 19. d5 {[%clk 0:01:31]} 19... Nc2
{[%clk 0:01:56.7]} 20. Rxa7 {[%clk 0:01:21]} 20... Qxa7 {[%clk 0:01:03.4]} 21.
Bxa7 {[%clk 0:01:22.9]} 21... Nxe1 {[%clk 0:01:04.9]} 22. Bxb8 {[%clk
0:01:23.4]} 22... Nd3 {[%clk 0:01:06.1]} 23. d6 {[%clk 0:01:11.5]} 23... Bd8
{[%clk 0:01:06.8]} 24. Nxb5 {[%clk 0:01:12.5]} 24... Bd7 {[%clk 0:01:06.2]} 25.
Nc7 {[%clk 0:01:04.9]} 25... Nxb2 {[%clk 0:01:06.8]} 26. Rc1 {[%clk 0:01:03]}
26... f5 {[%clk 0:00:59.8]} 27. Ba7 {[%clk 0:00:38.4]} 27... Bf6 {[%clk
0:00:40.4]} 28. exf5 {[%clk 0:00:37.3]} 28... exf5 {[%clk 0:00:41.1]} 29. Bd5+
{[%clk 0:00:37.5]} 29... Kh8 {[%clk 0:00:42.5]} 30. Bxc4 {[%clk 0:00:38.7]}
30... Be5 {[%clk 0:00:41.6]} 31. Be6 {[%clk 0:00:34.6]} 31... Rd8 {[%clk
0:00:31]} 32. Bxd7 {[%clk 0:00:27.3]} 32... Rxd7 {[%clk 0:00:31.9]} 33. Nb5
{[%clk 0:00:28.3]} 33... g6 {[%clk 0:00:29.6]} 34. Rc8+ {[%clk 0:00:26.8]} 34...
Kg7 {[%clk 0:00:30.4]} 35. Rc7 {[%clk 0:00:28.1]} 35... Rxc7 {[%clk 0:00:31]}
36. dxc7 {[%clk 0:00:29.2]} 36... Bxc7 {[%clk 0:00:32.5]} 37. Nxc7 {[%clk
0:00:30.3]} 37... Nc4 {[%clk 0:00:33.5]} 38. Bd4+ {[%clk 0:00:28.7]} 38... Kf7
{[%clk 0:00:34.2]} 39. Nd5 {[%clk 0:00:29.1]} 39... g5 {[%clk 0:00:35.1]} 40.
Kg2 {[%clk 0:00:29.3]} 40... Ke6 {[%clk 0:00:31.2]} 41. Ne3 {[%clk 0:00:28.7]}
41... Nd6 {[%clk 0:00:31.3]} 42. f3 {[%clk 0:00:28.1]} 42... f4 {[%clk
0:00:28.5]} 43. gxf4 {[%clk 0:00:28.4]} 43... gxf4 {[%clk 0:00:30.4]} 44. Ng4
{[%clk 0:00:27.9]} 44... Kf5 {[%clk 0:00:31.3]} 45. Bb6 {[%clk 0:00:27.1]} 45...
Nc4 {[%clk 0:00:31.2]} 46. Bc7 {[%clk 0:00:28]} 46... h5 {[%clk 0:00:31.5]} 47.
Nf2 {[%clk 0:00:23.7]} 47... Ne3+ {[%clk 0:00:28.8]} 48. Kg1 {[%clk 0:00:24.9]}
48... Nd5 {[%clk 0:00:28.4]} 49. Bd6 {[%clk 0:00:24.8]} 49... Nc3 {[%clk
0:00:18.6]} 50. Nh3 {[%clk 0:00:23.7]} 50... Nd5 {[%clk 0:00:19]} 51. Kf2 {[%clk
0:00:24.4]} 51... Ke6 {[%clk 0:00:20.1]} 52. Bb8 {[%clk 0:00:24.9]} 52... Kf5
{[%clk 0:00:22]} 53. Ke2 {[%clk 0:00:25.5]} 53... h4 {[%clk 0:00:22.2]} 54. Kd3
{[%clk 0:00:25.8]} 54... Ne3 {[%clk 0:00:23.1]} 55. Bxf4 {[%clk 0:00:23.4]}
55... Nd5 {[%clk 0:00:23.2]} 56. Bd2 {[%clk 0:00:24]} 56... Ne7 {[%clk
0:00:23.4]} 57. Kd4 {[%clk 0:00:23]} 57... Ng6 {[%clk 0:00:24.3]} 58. Nf2 {[%clk
0:00:22.7]} 58... Ne5 {[%clk 0:00:25]} 59. Ke3 {[%clk 0:00:23.8]} 59... Nc4+
{[%clk 0:00:25.5]} 60. Ke2 {[%clk 0:00:25.1]} 60... Ne5 {[%clk 0:00:24.3]} 61.
Bc3 {[%clk 0:00:24.4]} 61... Ng6 {[%clk 0:00:24.2]} 62. Nd3 {[%clk 0:00:23.8]}
62... Ne7 {[%clk 0:00:25.1]} 63. Bd2 {[%clk 0:00:21.3]} 63... Nc6 {[%clk
0:00:25.5]} 64. Nb4 {[%clk 0:00:20.7]} 64... Nd4+ {[%clk 0:00:26.3]} 65. Ke3
{[%clk 0:00:21.5]} 65... Nb5 {[%clk 0:00:24.4]} 66. Nc2 {[%clk 0:00:22.2]} 66...
Nd6 {[%clk 0:00:24.7]} 67. Nd4+ {[%clk 0:00:22.8]} 67... Kg5 {[%clk 0:00:24.9]}
68. Kd3+ {[%clk 0:00:23.2]} 68... Kh5 {[%clk 0:00:25.4]} 69. Ne6 {[%clk
0:00:21.5]} 69... Nf7 {[%clk 0:00:21.6]} 70. Ke4 {[%clk 0:00:21.6]} 70... Nd6+
{[%clk 0:00:21.5]} 71. Kf4 {[%clk 0:00:22.8]} 71... Nc4 {[%clk 0:00:22.1]} 72.
Bc3 {[%clk 0:00:22.2]} 72... Nb6 {[%clk 0:00:22.1]} 73. Ng7+ {[%clk 0:00:22]}
73... Kg6 {[%clk 0:00:22.6]} 74. Kg4 {[%clk 0:00:21.5]} 74... Nd5 {[%clk
0:00:23.3]} 75. Bd4 {[%clk 0:00:22.9]} 75... h3 {[%clk 0:00:20.9]} 76. Kxh3
{[%clk 0:00:21.6]} 76... Nf4+ {[%clk 0:00:22]} 77. Kg4 {[%clk 0:00:21.3]} 77...
Ne2 {[%clk 0:00:22.1]} 78. Be5 {[%clk 0:00:21.9]} 78... Nc1 {[%clk 0:00:21.8]}
79. f4 {[%clk 0:00:21.7]} 79... Nd3 {[%clk 0:00:23.1]} 80. Ne6 {[%clk
0:00:19.8]} 80... Nf2+ {[%clk 0:00:22.5]} 81. Kf3 {[%clk 0:00:19.4]} 81... Nd3
{[%clk 0:00:22.9]} 82. Nd4 {[%clk 0:00:20.2]} 82... Nc5 {[%clk 0:00:19.6]} 83.
Kg4 {[%clk 0:00:20.8]} 83... Nd3 {[%clk 0:00:19.7]} 84. f5+ {[%clk 0:00:21.6]}
84... Kf7 {[%clk 0:00:21.1]} 85. Nf3 {[%clk 0:00:21.8]} 85... Nf2+ {[%clk
0:00:21.4]} 86. Kg5 {[%clk 0:00:22.2]} 86... Nh3+ {[%clk 0:00:20.8]} 87. Kh4
{[%clk 0:00:21.4]} 87... Nf2 {[%clk 0:00:21.9]} 88. Ng5+ {[%clk 0:00:22.1]}
88... Ke7 {[%clk 0:00:23.1]} 89. f6+ {[%clk 0:00:23]} 89... Kf8 {[%clk
0:00:24.6]} 90. Bd6+ {[%clk 0:00:23.5]} 1-0

[Event "*** Titled Tuesday Blitz"]
[Site "Chess.com"]
[Date "2019.04.02"]
[Round "7"]
[White "TST2014"]
[Black "MikaelyanArman"]
[Result "0-1"]
[WhiteElo "2514"]
[BlackElo "2740"]
[TimeControl "180+2"]
[EndTime "15:38:05 PDT"]
[Termination "MikaelyanArman won by resignation"]

1. d4 {[%clk 0:03:01.9]} 1... g6 {[%clk 0:03:00.2]} 2. e4 {[%clk 0:03:00.5]}
2... Bg7 {[%clk 0:03:01.5]} 3. Nf3 {[%clk 0:02:58.9]} 3... d6 {[%clk 0:03:01.8]}
4. Bc4 {[%clk 0:03:00]} 4... Nf6 {[%clk 0:02:59.8]} 5. Qe2 {[%clk 0:03:00.3]}
5... O-O {[%clk 0:02:57.8]} 6. O-O {[%clk 0:02:57.6]} 6... Bg4 {[%clk
0:02:57.3]} 7. Nbd2 {[%clk 0:02:57.5]} 7... Nc6 {[%clk 0:02:58]} 8. c3 {[%clk
0:02:56.4]} 8... e5 {[%clk 0:02:59.2]} 9. h3 {[%clk 0:02:55.7]} 9... Bxf3 {[%clk
0:02:55.5]} 10. Nxf3 {[%clk 0:02:53.7]} 10... exd4 {[%clk 0:02:55.8]} 11. cxd4
{[%clk 0:02:54.9]} 11... Re8 {[%clk 0:02:52.3]} 12. e5 {[%clk 0:02:51.3]} 12...
dxe5 {[%clk 0:02:30.3]} 13. dxe5 {[%clk 0:02:51.1]} 13... Nd4 {[%clk 0:02:31.3]}
14. Bxf7+ {[%clk 0:02:03.7]} 14... Kxf7 {[%clk 0:02:26.6]} 15. Qc4+ {[%clk
0:02:05.1]} 15... Qd5 {[%clk 0:02:26.2]} 16. Qxd4 {[%clk 0:01:34.4]} 16... Qxd4
{[%clk 0:02:25.7]} 17. Nxd4 {[%clk 0:01:35.9]} 17... Rxe5 {[%clk 0:02:27.2]} 18.
Nf3 {[%clk 0:01:36.1]} 18... Rb5 {[%clk 0:02:24.5]} 19. a4 {[%clk 0:01:32.5]}
19... Rb4 {[%clk 0:02:21.7]} 20. a5 {[%clk 0:01:26.7]} 20... Re8 {[%clk
0:02:20]} 21. a6 {[%clk 0:01:27.1]} 21... b6 {[%clk 0:02:19.7]} 22. Ra3 {[%clk
0:01:19.2]} 22... c5 {[%clk 0:02:13.9]} 23. b3 {[%clk 0:01:16]} 23... Nd5 {[%clk
0:02:14.3]} 24. Bd2 {[%clk 0:01:14.8]} 24... Rbe4 {[%clk 0:02:13.5]} 25. Ng5+
{[%clk 0:01:14.7]} 25... Kg8 {[%clk 0:02:14]} 26. Nxe4 {[%clk 0:01:16]} 26...
Rxe4 {[%clk 0:02:15.9]} 27. Re1 {[%clk 0:01:17.2]} 27... Rd4 {[%clk 0:02:15.6]}
28. Bc1 {[%clk 0:00:55.6]} 28... Rd3 {[%clk 0:02:10]} 29. Kf1 {[%clk 0:00:53.5]}
29... Kf7 {[%clk 0:02:08.8]} 30. Ke2 {[%clk 0:00:50.8]} 30... Rc3 {[%clk
0:02:01.3]} 31. Bd2 {[%clk 0:00:48.5]} 31... Rc2 {[%clk 0:02:02.7]} 32. Rc1
{[%clk 0:00:48.4]} 32... Rb2 {[%clk 0:01:59.7]} 33. Kd1 {[%clk 0:00:37.6]} 33...
Bd4 {[%clk 0:01:56.3]} 34. f3 {[%clk 0:00:32.5]} 34... Ne3+ {[%clk 0:01:29.1]}
35. Bxe3 {[%clk 0:00:29.6]} 35... Bxe3 {[%clk 0:01:31]} 36. Rc2 {[%clk 0:00:31]}
36... Rb1+ {[%clk 0:01:32.4]} 37. Ke2 {[%clk 0:00:32.2]} 37... Bd4 {[%clk
0:01:34]} 38. Kd3 {[%clk 0:00:32.5]} 38... Ke6 {[%clk 0:01:33.5]} 39. Kc4 {[%clk
0:00:33.7]} 39... Kd6 {[%clk 0:01:34.1]} 40. Raa2 {[%clk 0:00:32.9]} 40... Kc6
{[%clk 0:01:34.1]} 41. Ra3 {[%clk 0:00:30.2]} 41... b5+ {[%clk 0:01:34.9]} 42.
Kd3 {[%clk 0:00:31.2]} 42... b4 {[%clk 0:01:36.3]} 43. Ra4 {[%clk 0:00:21.3]}
43... Kd5 {[%clk 0:01:37.2]} 44. Re2 {[%clk 0:00:16.5]} 44... Rxb3+ {[%clk
0:01:35.8]} 45. Kc2 {[%clk 0:00:17.7]} 45... Rb2+ {[%clk 0:01:37]} 46. Kd1
{[%clk 0:00:19]} 46... Rb1+ {[%clk 0:01:37]} 47. Kc2 {[%clk 0:00:20.1]} 47...
Rg1 {[%clk 0:01:36.3]} 48. Re7 {[%clk 0:00:19.9]} 48... Rxg2+ {[%clk 0:01:37]}
49. Kd1 {[%clk 0:00:20.9]} 49... Rg1+ {[%clk 0:01:11.5]} 50. Ke2 {[%clk
0:00:20.9]} 50... Rg2+ {[%clk 0:01:07.6]} 51. Kf1 {[%clk 0:00:20.5]} 51... Rg1+
{[%clk 0:00:47.6]} 52. Ke2 {[%clk 0:00:21.4]} 52... c4 {[%clk 0:00:46.4]} 53.
Rxb4 {[%clk 0:00:21.6]} 53... Bc5 {[%clk 0:00:47.7]} 54. Rb5 {[%clk 0:00:21]}
54... Kc6 {[%clk 0:00:44.9]} 55. Rxc5+ {[%clk 0:00:20.9]} 55... Kxc5 {[%clk
0:00:46]} 56. Rxa7 {[%clk 0:00:22.5]} 56... Ra1 {[%clk 0:00:46.3]} 57. Rc7+
{[%clk 0:00:21.1]} 57... Kd4 {[%clk 0:00:45.2]} 58. Rd7+ {[%clk 0:00:20.4]}
58... Kc3 {[%clk 0:00:43.5]} 59. a7 {[%clk 0:00:21.6]} 59... h5 {[%clk
0:00:40.9]} 60. h4 {[%clk 0:00:22.4]} 60... Kc2 {[%clk 0:00:40.9]} 61. Ke3
{[%clk 0:00:23.8]} 61... c3 {[%clk 0:00:41.2]} 62. Kf4 {[%clk 0:00:23.5]} 62...
Ra5 {[%clk 0:00:41.4]} 63. Rb7 {[%clk 0:00:17.7]} 63... Kd2 {[%clk 0:00:40.5]}
64. Rd7+ {[%clk 0:00:18.5]} 64... Kc1 {[%clk 0:00:40.8]} 65. Ke4 {[%clk
0:00:19.8]} 65... c2 {[%clk 0:00:41.7]} 66. f4 {[%clk 0:00:21.3]} 66... Kb2
{[%clk 0:00:19.2]} 67. Rb7+ {[%clk 0:00:21.5]} 67... Kc3 {[%clk 0:00:20]} 68.
Rc7+ {[%clk 0:00:22.4]} 68... Kd2 {[%clk 0:00:21]} 69. Rd7+ {[%clk 0:00:23.1]}
69... Ke2 {[%clk 0:00:14.4]} 70. Rc7 {[%clk 0:00:23.9]} 70... Ra4+ {[%clk
0:00:15.6]} 71. Ke5 {[%clk 0:00:23.9]} 71... Kd3 {[%clk 0:00:16.8]} 72. Kf6
{[%clk 0:00:21.1]} 72... Rxa7 {[%clk 0:00:14.9]} 73. Rxa7 {[%clk 0:00:20.9]}
73... c1=Q {[%clk 0:00:15.3]} 74. Kxg6 {[%clk 0:00:18]} 74... Qc6+ {[%clk
0:00:15.9]} 75. Kh7 {[%clk 0:00:16.4]} 75... Ke4 {[%clk 0:00:12.3]} 76. Rf7
{[%clk 0:00:16.2]} 76... Kf3 {[%clk 0:00:11.1]} 77. f5 {[%clk 0:00:17]} 77...
Kg4 {[%clk 0:00:11.1]} 78. f6 {[%clk 0:00:17.7]} 78... Kxh4 {[%clk 0:00:12.1]}
79. Kg6 {[%clk 0:00:16.4]} 79... Kg4 {[%clk 0:00:10.9]} 80. Re7 {[%clk
0:00:15.3]} 80... h4 {[%clk 0:00:10.1]} 81. Kg7 {[%clk 0:00:16.7]} 81... Qc3
{[%clk 0:00:09.7]} 82. Kg6 {[%clk 0:00:15.8]} 82... Qd3+ {[%clk 0:00:10.4]} 83.
Kg7 {[%clk 0:00:16.7]} 83... Qd4 {[%clk 0:00:11.6]} 84. Kg6 {[%clk 0:00:17.9]}
84... Qf4 {[%clk 0:00:11.8]} 85. f7 {[%clk 0:00:17.2]} 85... Qg5+ {[%clk
0:00:12.6]} 86. Kh7 {[%clk 0:00:15.9]} 86... Qxe7 {[%clk 0:00:13.9]} 87. Kh8
{[%clk 0:00:17.2]} 87... Qf8+ {[%clk 0:00:14.8]} 88. Kh7 {[%clk 0:00:18]} 88...
Qxf7+ {[%clk 0:00:15.9]} 89. Kh6 {[%clk 0:00:19.5]} 89... Qa7 {[%clk 0:00:16]}
0-1

[Event "*** Titled Tuesday Blitz"]
[Site "Chess.com"]
[Date "2019.04.02"]
[Round "8"]
[White "Tiqr777"]
[Black "DACF2905"]
[Result "0-1"]
[WhiteElo "2609"]
[BlackElo "2094"]
[TimeControl "180+2"]
[EndTime "15:42:19 PDT"]
[Termination "DACF2905 won by resignation"]

1. e4 {[%clk 0:03:01.9]} 1... c5 {[%clk 0:03:00.1]} 2. Nf3 {[%clk 0:03:02.1]}
2... e6 {[%clk 0:03:01.2]} 3. c4 {[%clk 0:03:02.2]} 3... Nc6 {[%clk 0:03:00.9]}
4. Nc3 {[%clk 0:03:02.9]} 4... a6 {[%clk 0:03:00.1]} 5. a3 {[%clk 0:03:03.6]}
5... Qc7 {[%clk 0:02:59.7]} 6. d4 {[%clk 0:03:04.4]} 6... cxd4 {[%clk
0:03:01.6]} 7. Nxd4 {[%clk 0:03:04.1]} 7... Nf6 {[%clk 0:03:03.1]} 8. Be2 {[%clk
0:03:03.1]} 8... Bc5 {[%clk 0:03:02.4]} 9. Be3 {[%clk 0:02:58.8]} 9... d6 {[%clk
0:02:58]} 10. Bc1 {[%clk 0:02:58.9]} 10... Bxd4 {[%clk 0:02:58.5]} 0-1

[Event "*** Titled Tuesday Blitz"]
[Site "Chess.com"]
[Date "2019.04.02"]
[Round "8"]
[White "kikoveiga"]
[Black "XiaoKangZhong"]
[Result "0-1"]
[WhiteElo "2168"]
[BlackElo "2121"]
[TimeControl "180+2"]
[EndTime "15:43:45 PDT"]
[Termination "XiaoKangZhong won by resignation"]

1. Nf3 {[%clk 0:03:01.9]} 1... Nf6 {[%clk 0:03:00.6]} 2. g3 {[%clk 0:03:03.8]}
2... g6 {[%clk 0:03:02.2]} 3. Bg2 {[%clk 0:03:05.7]} 3... Bg7 {[%clk 0:03:03.9]}
4. O-O {[%clk 0:03:07.6]} 4... O-O {[%clk 0:03:05.6]} 5. d3 {[%clk 0:03:09.5]}
5... d5 {[%clk 0:03:06.9]} 6. Nbd2 {[%clk 0:03:09.8]} 6... b6 {[%clk 0:03:08.2]}
7. e4 {[%clk 0:03:11.7]} 7... dxe4 {[%clk 0:03:08.2]} 8. Ng5 {[%clk 0:03:12.4]}
8... Bb7 {[%clk 0:03:08]} 9. Ndxe4 {[%clk 0:03:13.8]} 9... Nxe4 {[%clk
0:03:08.4]} 10. Nxe4 {[%clk 0:03:14.9]} 10... Kh8 {[%clk 0:03:06.4]} 11. Re1
{[%clk 0:03:14.3]} 11... Nd7 {[%clk 0:03:05.8]} 12. d4 {[%clk 0:03:11.6]} 12...
Nf6 {[%clk 0:03:06.1]} 13. c3 {[%clk 0:03:11.5]} 13... Nxe4 {[%clk 0:03:06.5]}
14. Bxe4 {[%clk 0:03:13.4]} 14... Bxe4 {[%clk 0:03:07.6]} 15. Rxe4 {[%clk
0:03:15.3]} 15... e5 {[%clk 0:03:05.8]} 16. d5 {[%clk 0:03:13.8]} 16... Qd6
{[%clk 0:03:04.6]} 17. c4 {[%clk 0:03:11.5]} 17... Qc5 {[%clk 0:02:59.2]} 18.
Rh4 {[%clk 0:03:07.6]} 18... Bf6 {[%clk 0:02:56.5]} 19. Rh3 {[%clk 0:03:07.1]}
19... Qxc4 {[%clk 0:02:50.4]} 20. b3 {[%clk 0:03:06.4]} 20... Qd4 {[%clk
0:02:40.8]} 21. Qxd4 {[%clk 0:03:04]} 21... exd4 {[%clk 0:02:41.8]} 22. Bf4
{[%clk 0:03:05.9]} 22... Rac8 {[%clk 0:02:41.9]} 23. Rc1 {[%clk 0:03:06.4]}
23... Rfd8 {[%clk 0:02:42.7]} 24. g4 {[%clk 0:03:01.1]} 24... Rxd5 {[%clk
0:02:38.5]} 25. Rxc7 {[%clk 0:03:01.8]} 25... Rxc7 {[%clk 0:02:35.6]} 26. Bxc7
{[%clk 0:03:03.7]} 26... d3 {[%clk 0:02:36.5]} 0-1

[Event "*** Titled Tuesday Blitz"]
[Site "Chess.com"]
[Date "2019.04.02"]
[Round "8"]
[White "Joseph_Truelson"]
[Black "maestroza"]
[Result "0-1"]
[WhiteElo "2265"]
[BlackElo "2487"]
[TimeControl "180+2"]
[EndTime "15:43:59 PDT"]
[Termination "maestroza won by checkmate"]

1. d4 {[%clk 0:03:01.9]} 1... Nf6 {[%clk 0:03:00.9]} 2. Nc3 {[%clk 0:03:02.3]}
2... d5 {[%clk 0:03:01.4]} 3. Bf4 {[%clk 0:03:03.2]} 3... a6 {[%clk 0:03:02.7]}
4. e3 {[%clk 0:03:01.9]} 4... e6 {[%clk 0:03:04.1]} 5. Bd3 {[%clk 0:03:02.1]}
5... c5 {[%clk 0:03:05.3]} 6. Nf3 {[%clk 0:03:00.3]} 6... Nc6 {[%clk 0:03:06.1]}
7. O-O {[%clk 0:03:01]} 7... c4 {[%clk 0:03:06.4]} 8. Be2 {[%clk 0:03:01.5]}
8... b5 {[%clk 0:03:06.2]} 9. Ne5 {[%clk 0:03:01.7]} 9... Bb7 {[%clk 0:03:03.6]}
10. a4 {[%clk 0:02:58.6]} 10... b4 {[%clk 0:03:03.1]} 11. Nb1 {[%clk 0:03:00.1]}
11... Bd6 {[%clk 0:03:00.6]} 12. Nxc6 {[%clk 0:02:57.8]} 12... Bxc6 {[%clk
0:03:00.8]} 13. Bxd6 {[%clk 0:02:59.4]} 13... Qxd6 {[%clk 0:03:02.6]} 14. f4
{[%clk 0:02:58]} 14... a5 {[%clk 0:02:29.4]} 15. Nd2 {[%clk 0:02:53.8]} 15...
O-O {[%clk 0:02:25]} 16. b3 {[%clk 0:02:53.6]} 16... c3 {[%clk 0:02:22.5]} 17.
Nf3 {[%clk 0:02:53.5]} 17... Ne4 {[%clk 0:02:23.6]} 18. Bd3 {[%clk 0:02:53.5]}
18... f6 {[%clk 0:02:18.6]} 19. Kh1 {[%clk 0:02:48.1]} 19... Bb7 {[%clk
0:02:06.3]} 20. Rg1 {[%clk 0:02:45.7]} 20... Nf2# {[%clk 0:02:06.5]} 0-1

[Event "*** Titled Tuesday Blitz"]
[Site "Chess.com"]
[Date "2019.04.02"]
[Round "8"]
[White "sere99"]
[Black "Caisachess"]
[Result "1/2-1/2"]
[WhiteElo "2303"]
[BlackElo "2418"]
[TimeControl "180+2"]
[EndTime "15:44:42 PDT"]
[Termination "Game drawn by agreement"]

1. d4 {[%clk 0:03:01.9]} 1... Nf6 {[%clk 0:03:00.6]} 2. c4 {[%clk 0:03:03.8]}
2... e6 {[%clk 0:03:01.9]} 3. Nc3 {[%clk 0:03:03.6]} 3... Bb4 {[%clk 0:03:03.2]}
4. Qc2 {[%clk 0:03:05.1]} 4... O-O {[%clk 0:03:03.3]} 5. a3 {[%clk 0:03:01.6]}
5... Bxc3+ {[%clk 0:03:04.2]} 6. Qxc3 {[%clk 0:03:03.5]} 6... d5 {[%clk
0:03:05.2]} 7. Bg5 {[%clk 0:02:43.2]} 7... dxc4 {[%clk 0:02:57.5]} 8. Qxc4
{[%clk 0:02:43.9]} 8... Qd5 {[%clk 0:02:58.6]} 9. Qxd5 {[%clk 0:02:32.2]} 9...
Nxd5 {[%clk 0:02:56.9]} 10. e4 {[%clk 0:02:25.9]} 10... Nb6 {[%clk 0:02:52]} 11.
Rc1 {[%clk 0:02:20.5]} 11... c6 {[%clk 0:02:52.3]} 12. Nf3 {[%clk 0:02:13.4]}
12... N8d7 {[%clk 0:02:46]} 13. Bd3 {[%clk 0:02:08.3]} 13... Re8 {[%clk
0:02:46.4]} 14. O-O {[%clk 0:02:01.8]} 14... e5 {[%clk 0:02:45.9]} 15. Nxe5
{[%clk 0:01:53]} 15... Nxe5 {[%clk 0:02:46.2]} 16. dxe5 {[%clk 0:01:54.9]} 16...
Rxe5 {[%clk 0:02:47.6]} 17. Be3 {[%clk 0:01:48.6]} 17... Re8 {[%clk 0:02:42.2]}
18. b3 {[%clk 0:01:43.1]} 18... Be6 {[%clk 0:02:42.5]} 19. Bc2 {[%clk
0:01:43.1]} 19... Rad8 {[%clk 0:02:38.3]} 20. Rfd1 {[%clk 0:01:38]} 1/2-1/2

[Event "*** Titled Tuesday Blitz"]
[Site "Chess.com"]
[Date "2019.04.02"]
[Round "8"]
[White "cstevens1"]
[Black "fm_magua"]
[Result "1-0"]
[WhiteElo "2713"]
[BlackElo "2514"]
[TimeControl "180+2"]
[EndTime "15:45:37 PDT"]
[Termination "cstevens1 won by resignation"]

1. e4 {[%clk 0:03:01.9]} 1... c5 {[%clk 0:02:54.2]} 2. Nf3 {[%clk 0:03:03]} 2...
Nc6 {[%clk 0:02:52.6]} 3. Nc3 {[%clk 0:03:03.9]} 3... g6 {[%clk 0:02:53.3]} 4.
Bb5 {[%clk 0:03:04.2]} 4... Bg7 {[%clk 0:02:54]} 5. Bxc6 {[%clk 0:03:05.5]} 5...
dxc6 {[%clk 0:02:55.1]} 6. d3 {[%clk 0:03:07]} 6... e5 {[%clk 0:02:56.4]} 7. Be3
{[%clk 0:03:08]} 7... b6 {[%clk 0:02:57]} 8. h3 {[%clk 0:03:09.3]} 8... Be6
{[%clk 0:02:57.5]} 9. Qd2 {[%clk 0:03:10.4]} 9... f6 {[%clk 0:02:56.4]} 10. O-O
{[%clk 0:03:11.1]} 10... h5 {[%clk 0:02:57.6]} 11. Nh2 {[%clk 0:03:08.9]} 11...
g5 {[%clk 0:02:58.2]} 12. Ne2 {[%clk 0:02:58.9]} 12... Nh6 {[%clk 0:02:58.1]}
13. c3 {[%clk 0:02:58.3]} 13... a5 {[%clk 0:02:57.9]} 14. d4 {[%clk 0:02:59.3]}
14... cxd4 {[%clk 0:02:58.5]} 15. cxd4 {[%clk 0:03:00.5]} 15... exd4 {[%clk
0:02:58.4]} 16. Nxd4 {[%clk 0:02:58.8]} 16... Qd7 {[%clk 0:02:56.1]} 17. Nxe6
{[%clk 0:02:46.8]} 17... Qxe6 {[%clk 0:02:57]} 18. Bxb6 {[%clk 0:02:48.4]} 18...
O-O {[%clk 0:02:57.2]} 19. Bxa5 {[%clk 0:02:44.2]} 19... Qxe4 {[%clk 0:02:54.5]}
20. Bc3 {[%clk 0:02:41.3]} 20... Rad8 {[%clk 0:02:48.2]} 21. Rfe1 {[%clk
0:02:34.9]} 21... Qg6 {[%clk 0:02:45.3]} 22. Qe2 {[%clk 0:02:34.8]} 22... g4
{[%clk 0:02:45.9]} 23. hxg4 {[%clk 0:02:35.4]} 23... hxg4 {[%clk 0:02:46.5]} 24.
g3 {[%clk 0:02:34.1]} 24... Rfe8 {[%clk 0:02:47.3]} 25. Qc4+ {[%clk 0:02:34.6]}
25... Kh7 {[%clk 0:02:47.2]} 26. Qxc6 {[%clk 0:02:35.5]} 26... Nf5 {[%clk
0:02:40.1]} 27. Rxe8 {[%clk 0:02:21.2]} 27... Rxe8 {[%clk 0:02:42]} 28. Qc4
{[%clk 0:02:21]} 28... Nh6 {[%clk 0:02:29.4]} 29. a4 {[%clk 0:02:16.4]} 29... f5
{[%clk 0:02:30.7]} 30. a5 {[%clk 0:02:09.8]} 30... Bxc3 {[%clk 0:02:30.9]} 31.
bxc3 {[%clk 0:01:56.2]} 31... Re4 {[%clk 0:02:30.1]} 32. Qc7+ {[%clk 0:01:54.5]}
32... Nf7 {[%clk 0:02:31.3]} 33. a6 {[%clk 0:01:53.9]} 33... Qe6 {[%clk
0:02:31]} 34. a7 {[%clk 0:01:51.6]} 34... Re1+ {[%clk 0:02:31.9]} 35. Rxe1
{[%clk 0:01:52.2]} 35... Qxe1+ {[%clk 0:02:33.8]} 36. Nf1 {[%clk 0:01:53.9]} 1-0

[Event "*** Titled Tuesday Blitz"]
[Site "Chess.com"]
[Date "2019.04.02"]
[Round "8"]
[White "ristingho"]
[Black "chesstatour"]
[Result "1-0"]
[WhiteElo "2482"]
[BlackElo "1999"]
[TimeControl "180+2"]
[EndTime "15:46:12 PDT"]
[Termination "ristingho won by resignation"]

1. d4 {[%clk 0:03:01.9]} 1... Nf6 {[%clk 0:02:59.6]} 2. c4 {[%clk 0:03:02.3]}
2... e6 {[%clk 0:03:00.3]} 3. Nf3 {[%clk 0:03:02.5]} 3... Bb4+ {[%clk
0:03:00.9]} 4. Bd2 {[%clk 0:03:02.8]} 4... a5 {[%clk 0:03:01.6]} 5. g3 {[%clk
0:03:03.3]} 5... O-O {[%clk 0:03:02.3]} 6. Bg2 {[%clk 0:03:05.2]} 6... d5 {[%clk
0:03:03.7]} 7. Qc2 {[%clk 0:03:05.6]} 7... b6 {[%clk 0:02:52.3]} 8. O-O {[%clk
0:03:05.9]} 8... Ba6 {[%clk 0:02:47.7]} 9. Ne5 {[%clk 0:03:05.9]} 9... c6 {[%clk
0:01:59]} 10. Bf4 {[%clk 0:02:50]} 10... Bd6 {[%clk 0:01:48.3]} 11. Nd2 {[%clk
0:02:44.2]} 11... Ra7 {[%clk 0:01:35.6]} 12. e4 {[%clk 0:02:41.1]} 12... Bxe5
{[%clk 0:01:08.1]} 13. Bxe5 {[%clk 0:02:37.2]} 13... Nxe4 {[%clk 0:01:02.1]} 14.
Nxe4 {[%clk 0:02:35.8]} 14... dxe4 {[%clk 0:01:00]} 15. Bxe4 {[%clk 0:02:37.7]}
15... g6 {[%clk 0:00:51.4]} 16. Rfd1 {[%clk 0:02:35.9]} 16... Bb7 {[%clk
0:00:42.1]} 17. c5 {[%clk 0:02:34.9]} 17... b5 {[%clk 0:00:36.4]} 18. Bd6 {[%clk
0:02:34.4]} 18... Re8 {[%clk 0:00:36.9]} 19. h4 {[%clk 0:02:36.3]} 19... Na6
{[%clk 0:00:33.3]} 20. h5 {[%clk 0:02:36.5]} 20... Nc7 {[%clk 0:00:29.2]} 21.
hxg6 {[%clk 0:02:37.3]} 21... hxg6 {[%clk 0:00:27]} 22. Bxg6 {[%clk 0:02:38.1]}
22... Qf6 {[%clk 0:00:23.7]} 23. Bh7+ {[%clk 0:02:34.7]} 1-0